fUSD/lending_fUSD_20240404
["ID","MTS","AMOUNT","RATE_DAILY","PERIOD"]
[321453495,1712200245958,-600.0,0.00049,50]
[321453498,1712200245967,-500.0,0.00049002,30]
[321453501,1712200245976,-1100.0,0.00049002,30]
[321453503,1712200245986,-1300.0,0.00049002,30]
[321453505,1712200245995,-500.0,0.00049002,30]
[321453507,1712200246004,-388.42808272,0.00049032,30]
[321453509,1712200246015,-157.64312318,0.00049038,30]
[321453511,1712200246024,-153.89032083,0.0004904,30]
[321453513,1712200246033,-176.66265931,0.00049045,30]
[321453515,1712200246043,-292.23916669,0.00049045,30]
[321453517,1712200246054,-292.23916669,0.00049092,30]
[321453519,1712200246064,-1491.93307504,0.000491,14]
[321453521,1712200246074,-604.22994504,0.0004913,30]
[321453523,1712200246083,-197.97595336,0.00049161,30]
[321453526,1712200246094,-604.22994504,0.00049164,30]
[321453528,1712200246104,-151.0,0.00049176,2]
[321453530,1712200246113,-211.99904312,0.00049177,30]
[321453532,1712200246123,-604.22994504,0.00049188,30]
[321453534,1712200246132,-157.040411,0.00049194,100]
[321453536,1712200246141,-155.35899174,0.00049209,30]
[321453538,1712200246151,-211.99904312,0.00049214,30]
[321453540,1712200246160,-166.99346797,0.00049225,30]
[321453541,1712200246169,-292.23916669,0.00049239,30]
[321453542,1712200246178,-301.54,0.0004924,2]
[321453543,1712200246187,-154.06850799,0.00049272,30]
[321453544,1712200246197,-500.0,0.00049276,30]
[321453545,1712200246206,-1100.0,0.00049276,30]
[321453546,1712200246215,-1300.0,0.00049276,30]
[321453547,1712200246224,-500.0,0.00049276,30]
[321453548,1712200246233,-1226.25,0.000493,7]
[321453549,1712200246243,-1198.31,0.000493,7]
[321453550,1712200246254,-510.18312938,0.0004931,30]
[321453551,1712200246264,-2129.0,0.00049315,60]
[321453552,1712200246273,-1000.0,0.00049315,7]
[321453553,1712200246283,-1000.0,0.00049315,7]
[321453554,1712200246291,-1000.0,0.00049315,7]
[321453555,1712200246303,-1000.0,0.00049315,7]
[321453556,1712200246312,-1000.0,0.00049315,7]
[321453557,1712200246322,-1000.0,0.00049315,7]
[321453558,1712200246331,-1000.0,0.00049315,7]
[321453559,1712200246341,-1000.0,0.00049315,7]
[321453560,1712200246350,-1000.0,0.00049315,7]
[321453561,1712200246360,-1000.0,0.00049315,7]
[321453562,1712200246369,-1000.0,0.00049315,7]
[321453563,1712200246378,-1000.0,0.00049315,7]
[321453564,1712200246387,-1000.0,0.00049315,7]
[321453565,1712200246396,-1000.0,0.00049315,7]
[321453566,1712200246406,-1000.0,0.00049315,7]
[321453567,1712200246415,-1000.0,0.00049315,7]
[321453568,1712200246424,-1000.0,0.00049315,7]
[321453569,1712200246433,-1000.0,0.00049315,7]
[321453570,1712200246442,-1000.0,0.00049315,7]
[321453571,1712200246451,-1000.0,0.00049315,7]
[321453572,1712200246460,-1000.0,0.00049315,7]
[321453573,1712200246469,-1000.0,0.00049315,7]
[321453574,1712200246479,-1000.0,0.00049315,7]
[321453575,1712200246488,-1000.0,0.00049315,7]
[321453576,1712200246497,-1000.0,0.00049315,7]
[321453577,1712200246507,-1000.0,0.00049315,7]
[321453578,1712200246517,-1000.0,0.00049315,7]
[321453579,1712200246526,-1000.0,0.00049315,7]
[321453580,1712200246535,-1000.0,0.00049315,7]
[321453581,1712200246545,-1000.0,0.00049315,7]
[321453582,1712200246555,-1000.0,0.00049315,7]
[321453583,1712200246564,-1000.0,0.00049315,7]
[321453584,1712200246573,-1000.0,0.00049315,7]
[321453585,1712200246583,-1000.0,0.00049315,7]
[321453586,1712200246592,-1000.0,0.00049315,7]
[321453587,1712200246601,-1000.0,0.00049315,7]
[321453588,1712200246610,-1000.0,0.00049315,7]
[321453589,1712200246620,-1000.0,0.00049315,7]
[321453590,1712200246629,-1000.0,0.00049315,7]
[321453591,1712200246638,-1000.0,0.00049315,7]
[321453592,1712200246647,-1000.0,0.00049315,7]
[321453593,1712200246656,-1000.0,0.00049315,7]
[321453594,1712200246665,-1000.0,0.00049315,7]
[321453595,1712200246674,-1000.0,0.00049315,7]
[321453596,1712200246683,-1000.0,0.00049315,7]
[321453597,1712200246692,-1000.0,0.00049315,7]
[321453598,1712200246700,-1000.0,0.00049315,7]
[321453599,1712200246710,-1000.0,0.00049315,7]
[321453600,1712200246719,-1000.0,0.00049315,7]
[321453601,1712200246728,-1000.0,0.00049315,7]
[321453602,1712200246737,-1000.0,0.00049315,7]
[321453603,1712200246747,-1000.0,0.00049315,7]
[321453604,1712200246757,-1000.0,0.00049315,7]
[321453605,1712200246767,-1000.0,0.00049315,7]
[321453606,1712200246776,-1000.0,0.00049315,7]
[321453607,1712200246786,-1000.0,0.00049315,7]
[321453608,1712200246798,-1000.0,0.00049315,7]
[321453609,1712200246808,-1000.0,0.00049315,7]
[321453610,1712200246817,-1000.0,0.00049315,7]
[321453611,1712200246827,-1000.0,0.00049315,7]
[321453612,1712200246837,-1000.0,0.00049315,7]
[321453613,1712200246850,-1000.0,0.00049315,7]
[321453614,1712200246860,-1000.0,0.00049315,7]
[321453615,1712200246869,-1000.0,0.00049315,7]
[321453616,1712200246879,-1000.0,0.00049315,7]
[321453617,1712200246889,-1000.0,0.00049315,7]
[321453618,1712200246899,-1000.0,0.00049315,7]
[321453619,1712200246908,-1000.0,0.00049315,7]
[321453620,1712200246918,-1000.0,0.00049315,7]
[321453621,1712200246928,-1000.0,0.00049315,7]
[321453622,1712200246939,-1000.0,0.00049315,7]
[321453623,1712200246949,-1000.0,0.00049315,7]
[321453624,1712200246960,-1000.0,0.00049315,7]
[321453625,1712200246970,-1000.0,0.00049315,7]
[321453626,1712200246979,-1000.0,0.00049315,7]
[321453627,1712200246988,-1000.0,0.00049315,7]
[321453628,1712200246997,-1000.0,0.00049315,7]
[321453629,1712200247007,-1000.0,0.00049315,7]
[321453630,1712200247017,-1000.0,0.00049315,7]
[321453631,1712200247026,-1000.0,0.00049315,7]
[321453632,1712200247036,-1000.0,0.00049315,7]
[321453633,1712200247046,-1000.0,0.00049315,7]
[321453634,1712200247056,-1000.0,0.00049315,7]
[321453635,1712200247066,-1000.0,0.00049315,7]
[321453636,1712200247075,-1000.0,0.00049315,7]
[321453637,1712200247084,-1000.0,0.00049315,7]
[321453638,1712200247093,-1000.0,0.00049315,7]
[321453639,1712200247102,-1000.0,0.00049315,7]
[321453640,1712200247111,-1000.0,0.00049315,7]
[321453641,1712200247121,-1000.0,0.00049315,7]
[321453642,1712200247130,-1000.0,0.00049315,7]
[321453643,1712200247139,-1000.0,0.00049315,7]
[321453644,1712200247149,-1000.0,0.00049315,7]
[321453645,1712200247159,-1000.0,0.00049315,7]
[321453646,1712200247168,-1000.0,0.00049315,7]
[321453647,1712200247178,-1000.0,0.00049315,7]
[321453648,1712200247187,-1000.0,0.00049315,7]
[321453649,1712200247197,-1000.0,0.00049315,7]
[321453650,1712200247206,-1000.0,0.00049315,7]
[321453651,1712200247217,-1000.0,0.00049315,7]
[321453652,1712200247227,-150.0,0.00049315,2]
[321453653,1712200247237,-152.0,0.0004934,11]
[321453654,1712200247246,-211.99904312,0.00049361,30]
[321453655,1712200247255,-151.0,0.0004937,120]
[321453656,1712200247264,-535.0,0.000494,120]
[321453657,1712200247273,-604.22994504,0.00049406,30]
[321453658,1712200247284,-238.86502259,0.00049432,30]
[321453659,1712200247293,-388.42808272,0.00049437,30]
[321453660,1712200247305,-238.86502259,0.00049444,30]
[321453661,1712200247315,-292.23916669,0.00049457,30]
[321453662,1712200247325,-154.06850799,0.00049471,30]
[321453663,1712200247334,-510.18312938,0.00049472,30]
[321453664,1712200247343,-292.23916669,0.00049474,30]
[321453665,1712200247352,-153.89032083,0.00049477,30]
[321453666,1712200247362,-152.36417667,0.00049478,30]
[321453667,1712200247371,-155.35899174,0.00049485,30]
[321453668,1712200247380,-228745.81125356,0.0004949,15]
[321453669,1712200247389,-151.29625457,0.00049493,30]
[321453670,1712200247398,-161.040411,0.00049494,99]
[321453671,1712200247407,-78676.47390138,0.00049498,2]
[321453672,1712200247417,-153.89032083,0.00049521,30]
[321453673,1712200247426,-996.62,0.0004954,2]
[321453674,1712200247435,-500.0,0.0004955,90]
[321453675,1712200247444,-150.0,0.00049552,120]
[321453676,1712200247454,-238.86502259,0.00049566,30]
[321453677,1712200247463,-153.62296114,0.00049576,30]
[321453678,1712200247472,-198.6880857,0.00049579,30]
[321453679,1712200247482,-292.23916669,0.0004958,30]
[321453680,1712200247491,-153.89032083,0.00049583,30]
[321453681,1712200247500,-151.29625457,0.00049584,30]
[321453682,1712200247510,-7075.75,0.000496,6]
[321453683,1712200247519,-7075.75,0.000496,6]
[321453684,1712200247529,-7075.75,0.000496,6]
[321453685,1712200247538,-7075.75,0.000496,6]
[321453686,1712200247550,-7075.75,0.000496,6]
[321453687,1712200247560,-7075.75,0.000496,6]
[321453688,1712200247569,-7075.75,0.000496,6]
[321453689,1712200247578,-7075.75,0.000496,6]
[321453690,1712200247588,-7075.75,0.000496,6]
[321453691,1712200247597,-7075.75,0.000496,6]
[321453692,1712200247607,-7075.75,0.000496,6]
[321453693,1712200247616,-7075.75,0.000496,6]
[321453694,1712200247625,-7075.75,0.000496,6]
[321453695,1712200247635,-7075.75,0.000496,6]
[321453696,1712200247644,-7075.75,0.000496,6]
[321453697,1712200247653,-7075.75,0.000496,6]
[321453698,1712200247662,-7075.75,0.000496,6]
[321453700,1712200247672,-7075.75,0.000496,6]
[321453702,1712200247681,-7075.75,0.000496,6]
[321453704,1712200247690,-7075.75,0.000496,6]
[321453706,1712200247699,-292.23916669,0.00049621,30]
[321453708,1712200247709,-159.10975516,0.00049642,30]
[321453710,1712200247718,-211.99904312,0.00049689,30]
[321453711,1712200247728,-152.11,0.000497,6]
[321453713,1712200247737,-152.11,0.000497,6]
[321453715,1712200247746,-152.11,0.000497,6]
[321453717,1712200247756,-152.11,0.000497,6]
[321453719,1712200247765,-152.11,0.000497,6]
[321453721,1712200247774,-152.11,0.000497,6]
[321453723,1712200247784,-152.11,0.000497,6]
[321453725,1712200247794,-152.11,0.000497,6]
[321453727,1712200247804,-152.11,0.000497,6]
[321453729,1712200247813,-152.11,0.000497,6]
[321453730,1712200248115,-152.11,0.000497,6]
[321453731,1712200248125,-167.52558322,0.00049723,30]
[321453732,1712200248134,-238.86502259,0.00049731,30]
[321453733,1712200248143,-160.20412195,0.00049791,30]
[321453734,1712200248152,-157.040411,0.00049794,100]
[321453735,1712200248162,-20777.19534431,0.000498,60]
[321453736,1712200248170,-505.05628314,0.00049824,90]
[321453737,1712200248180,-1100.0,0.00049824,90]
[321453738,1712200248189,-1300.0,0.00049824,90]
[321453739,1712200248198,-500.0,0.00049824,90]
[321453740,1712200248207,-176.66265932,0.00049826,30]
[321453741,1712200248216,-197.97595336,0.00049831,30]
[321453742,1712200248224,-197.97595336,0.00049844,30]
[321453743,1712200248234,-292.23916669,0.00049844,30]
[321453744,1712200248243,-197.97595336,0.00049861,30]
[321453745,1712200248252,-153.89032083,0.00049866,30]
[321453746,1712200248262,-160.20412195,0.00049877,30]
[321453747,1712200248271,-211.99904312,0.00049878,30]
[321453748,1712200248280,-246.77372123,0.000499,84]
[321453749,1712200248292,-246.77372119,0.000499,84]
[321453750,1712200248303,-246.77372119,0.000499,84]
[321453751,1712200248312,-246.77372119,0.000499,84]
[321453752,1712200248322,-246.77372119,0.000499,84]
[321453753,1712200248332,-246.77372119,0.000499,84]
[321453754,1712200248341,-246.77372119,0.000499,84]
[321453755,1712200248351,-246.77372119,0.000499,84]
[321453756,1712200248360,-292.23916669,0.00049953,30]
[321453757,1712200248370,-510.18312938,0.00049955,30]
[321453758,1712200248379,-246.77372119,0.00049967,84]
[321453759,1712200248388,-200.0,0.0004999,90]
[321453760,1712200248397,-200.0,0.0004999,90]
[321453761,1712200248406,-227.4704926,0.0004999,90]
[321453762,1712200248415,-200.0,0.0004999,90]
[321453763,1712200248425,-200.0,0.0004999,90]
[321453764,1712200248434,-200.0,0.0004999,90]
[321453765,1712200248444,-200.0,0.0004999,90]
[321453766,1712200248453,-160.88854191,0.00049997,2]
[321453767,1712200248462,-160.20412195,0.00049999,30]
[321453768,1712200248471,-28739.76722321,0.0005,20]
[321453769,1712200248480,-235.00710185,0.0005,30]
[321453770,1712200248490,-27100.9070143,0.0005,4]
[321453771,1712200248499,-5000.0,0.0005,2]
[321453772,1712200248510,-1122755.68576308,0.0005,20]
[321453773,1712200248520,-593.42023571,0.0005,15]
[321453774,1712200248531,-1508.41289059,0.0005,2]
[321453775,1712200248540,-2236.20408815,0.0005,5]
[321453776,1712200248550,-1121.26292233,0.0005,2]
[321453777,1712200248560,-1600.0,0.0005,21]
[321453778,1712200248569,-151.0,0.0005,120]
[321453779,1712200248578,-14318.0095112,0.0005,120]
[321453780,1712200248588,-817.3993073,0.0005,2]
[321453781,1712200248597,-3887.01570934,0.0005,2]
[321453782,1712200248606,-200.0,0.0005,2]
[321453783,1712200248615,-3070.58058319,0.0005,120]
[321453784,1712200248624,-839.29836538,0.0005,2]
[321453785,1712200248633,-155.0,0.0005,2]
[321453786,1712200248643,-429.8125433,0.0005,28]
[321453787,1712200248652,-207.57257975,0.0005,120]
[321453788,1712200248661,-156.2876643,0.0005,120]
[321453789,1712200248670,-4168.358088,0.0005,30]
[321453790,1712200248679,-386.57193984,0.0005,30]
[321453791,1712200248689,-511.89897904,0.0005,90]
[321453792,1712200248698,-500.0,0.0005,2]
[321453793,1712200248707,-4773.0,0.0005,13]
[321453794,1712200248717,-30000.0,0.0005,120]
[321453795,1712200248726,-30000.0,0.0005,120]
[321453796,1712200248735,-30000.0,0.0005,120]
[321453797,1712200248745,-30000.0,0.0005,120]
[321453798,1712200248754,-414.59349774,0.0005,120]
[321453799,1712200248763,-848.60062448,0.0005,120]
[321453800,1712200248774,-2500.0,0.0005,90]
[321453801,1712200248784,-2500.0,0.0005,80]
[321453802,1712200248794,-600.0,0.0005,51]
[321453803,1712200248805,-500.0,0.0005,45]
[321453804,1712200248815,-261.68058527,0.0005,2]
[321453805,1712200248825,-302.0,0.00050002,4]
[321453806,1712200248835,-156.17754036,0.00050032,60]
[321453807,1712200248846,-168.30338035,0.00050043,60]
[321453808,1712200248856,-151.0,0.00050055,120]
[321453809,1712200248865,-152.0,0.00050075,12]
[321453810,1712200248875,-155.54109468,0.00050083,60]
[321453811,1712200248887,-500.0,0.00050098,90]
[321453812,1712200248897,-1155.79,0.000501,7]
[321453813,1712200248906,-154.06850799,0.00050118,60]
[321453814,1712200248915,-156.17754036,0.00050128,60]
[321453815,1712200248927,-154.06850799,0.00050134,60]
[321453816,1712200248937,-2129.0,0.00050136,64]
[321453817,1712200248947,-510.18312938,0.00050141,60]
[321453818,1712200248956,-156.17754036,0.00050154,60]
[321453819,1712200248966,-160.20412195,0.00050165,60]
[321453820,1712200248976,-161.040411,0.00050194,112]
[321453821,1712200248985,-238.86502259,0.00050201,60]
[321453822,1712200248995,-615.25742177,0.00050207,120]
[321453823,1712200249004,-230.62149275,0.00050264,14]
[321453824,1712200249014,-230.62149275,0.00050264,14]
[321453825,1712200249023,-230.62149275,0.00050264,14]
[321453826,1712200249032,-230.62149275,0.00050264,14]
[321453827,1712200249042,-230.62149275,0.00050264,14]
[321453828,1712200249052,-230.62149275,0.00050264,14]
[321453829,1712200249062,-230.62149275,0.00050264,14]
[321453830,1712200249071,-230.62149275,0.00050264,14]
[321453831,1712200249080,-230.62149275,0.00050264,14]
[321453832,1712200249090,-230.62149275,0.00050264,14]
[321453833,1712200249099,-230.62149275,0.00050264,14]
[321453834,1712200249107,-230.62149275,0.00050264,14]
[321453835,1712200249117,-230.62149275,0.00050264,14]
[321453836,1712200249126,-230.62149275,0.00050264,14]
[321453837,1712200249135,-230.62149275,0.00050264,14]
[321453838,1712200249144,-230.62149275,0.00050264,14]
[321453839,1712200249153,-230.62149275,0.00050264,14]
[321453840,1712200249163,-230.62149275,0.00050264,14]
[321453841,1712200249172,-230.62149275,0.00050264,14]
[321453842,1712200249181,-230.62149275,0.00050264,14]
[321453843,1712200249190,-230.62149275,0.00050264,14]
[321453844,1712200249199,-230.62149275,0.00050264,14]
[321453845,1712200249208,-230.62149275,0.00050264,14]
[321453846,1712200249217,-154.06850799,0.00050274,60]
[321453847,1712200249226,-316.869563,0.0005032,2]
[321453848,1712200249236,-155.35899174,0.00050368,60]
[321453849,1712200249245,-1100.0,0.00050372,90]
[321453850,1712200249255,-1300.0,0.00050372,90]
[321453851,1712200249264,-500.0,0.00050372,90]
[321453852,1712200249273,-155.35899174,0.00050386,60]
[321453853,1712200249283,-155.35899174,0.00050387,60]
[321453854,1712200249293,-238.86502259,0.00050416,60]
[321453855,1712200249306,-1433.470828,0.0005043,2]
[321453856,1712200249315,-500.0,0.00050444,4]
[321453857,1712200249325,-500.0,0.00050444,4]
[321453858,1712200249335,-500.0,0.00050444,4]
[321453859,1712200249345,-500.0,0.00050444,4]
[321453860,1712200249355,-500.0,0.00050444,4]
[321453861,1712200249365,-500.0,0.00050444,4]
[321453862,1712200249374,-500.0,0.00050444,4]
[321453863,1712200249384,-500.0,0.00050444,4]
[321453864,1712200249394,-500.0,0.00050444,4]
[321453865,1712200249404,-500.0,0.00050444,4]
[321453866,1712200249414,-500.0,0.00050444,4]
[321453867,1712200249423,-500.0,0.00050444,4]
[321453868,1712200249432,-500.0,0.00050444,4]
[321453869,1712200249442,-500.0,0.00050444,4]
[321453870,1712200249452,-500.0,0.00050444,4]
[321453871,1712200249461,-500.0,0.00050444,4]
[321453872,1712200249471,-500.0,0.00050444,4]
[321453873,1712200249480,-500.0,0.00050444,4]
[321453874,1712200249489,-500.0,0.00050444,4]
[321453875,1712200249498,-314.0,0.00050444,4]
[321453876,1712200249508,-156.17754036,0.00050464,60]
[321453877,1712200249517,-157.040411,0.00050494,111]
[321453878,1712200249527,-156.17754036,0.00050505,60]
[321453879,1712200249536,-604.22994504,0.00050505,60]
[321453880,1712200249545,-604.22994504,0.00050506,60]
[321453881,1712200249559,-604.22994504,0.00050521,60]
[321453882,1712200249569,-238.86502259,0.00050573,60]
[321453883,1712200249578,-153.89032083,0.00050574,60]
[321453884,1712200249587,-154.06850799,0.000506,60]
[321453885,1712200249596,-500.0,0.00050646,90]
[321453886,1712200249605,-211.99904312,0.00050649,60]
[321453887,1712200249614,-510.18312938,0.0005066,60]
[321453888,1712200249624,-155.35899174,0.00050669,60]
[321453889,1712200249633,-604.22994504,0.00050674,60]
[321453890,1712200249643,-1226.25,0.000507,7]
[321453891,1712200249652,-1198.31,0.000507,7]
[321453892,1712200249661,-166.94916545,0.00050704,60]
[321453893,1712200249670,-153.89032083,0.00050706,60]
[321453894,1712200249680,-153.89032083,0.00050727,60]
[321453895,1712200249689,-197.97595336,0.00050729,60]
[321453896,1712200249699,-151.0,0.0005074,120]
[321453897,1712200249708,-5824.68208529,0.0005074,2]
[321453898,1712200249717,-153.89032083,0.00050763,60]
[321453899,1712200249727,-163.87142962,0.00050773,60]
[321453900,1712200249737,-388.42808272,0.00050775,60]
[321453901,1712200249746,-388.42808272,0.00050791,60]
[321453902,1712200249755,-161.040411,0.00050794,112]
[321453903,1712200249765,-152.0,0.00050811,13]
[321453904,1712200249774,-238.86502259,0.0005083,60]
[321453905,1712200249784,-510.18312938,0.00050836,60]
[321453906,1712200249793,-604.0,0.00050842,7]
[321453907,1712200249805,-831.96,0.00050853,2]
[321453908,1712200249815,-154.06850799,0.00050864,60]
[321453909,1712200249824,-510.18312938,0.00050877,60]
[321453910,1712200249834,-388.42808272,0.00050891,60]
[321453911,1712200249843,-166.86503383,0.000509,120]
[321453912,1712200249855,-166.86503383,0.000509,120]
[321453913,1712200249865,-211.99904312,0.00050905,60]
[321453914,1712200249874,-1100.0,0.0005092,90]
[321453915,1712200249885,-1300.0,0.0005092,90]
[321453916,1712200249895,-500.0,0.0005092,90]
[321453917,1712200249904,-238.86502259,0.00050926,60]
[321453918,1712200249914,-153.89032083,0.00050932,60]
[321453919,1712200249924,-211.99904312,0.00050953,60]
[321453920,1712200249933,-2129.0,0.00050958,68]
[321453921,1712200249942,-292.23916669,0.0005099,60]
[321453922,1712200249952,-46893.25747965,0.00051,2]
[321453923,1712200249961,-800.0,0.00051,120]
[321453924,1712200249971,-155.35899174,0.00051008,60]
[321453925,1712200249980,-388.42808272,0.0005101,60]
[321453926,1712200249990,-388.42808272,0.00051022,60]
[321453927,1712200249999,-996.62,0.0005103,2]
[321453928,1712200250008,-153.89032083,0.00051062,60]
[321453929,1712200250018,-2872.0,0.00051069,117]
[321453930,1712200250027,-163.87142962,0.00051077,60]
[321453931,1712200250037,-238.86502259,0.00051086,60]
[321453932,1712200250046,-388.42808272,0.00051099,60]
[321453933,1712200250058,-22530.6123081,0.000511,7]
[321453934,1712200250067,-150.0,0.000511,10]
[321453935,1712200250077,-150.0,0.00051105,7]
[321453936,1712200250087,-388.42808272,0.00051112,60]
[321453937,1712200250097,-153.62296114,0.00051144,60]
[321453938,1712200250107,-510.18312938,0.00051149,60]
[321453939,1712200250116,-197.97595336,0.0005116,60]
[321453940,1712200250126,-167.52558323,0.00051162,60]
[321453941,1712200250135,-197.97595336,0.00051164,60]
[321453942,1712200250145,-515.82423311,0.00051194,90]
[321453943,1712200250154,-157.040411,0.00051194,113]
[321453944,1712200250164,-163.4074533,0.00051203,60]
[321453945,1712200250174,-150.0,0.00051207,120]
[321453946,1712200250184,-211.99904312,0.00051207,60]
[321453947,1712200250193,-150.0,0.00051215,120]
[321453948,1712200250203,-238.86502259,0.00051289,60]
[321453949,1712200250212,-292.23916669,0.00051316,60]
[321453950,1712200250222,-153.89032083,0.00051321,60]
[321453951,1712200250232,-292.23916669,0.00051326,60]
[321453952,1712200250242,-217.35356112,0.00051331,60]
[321453953,1712200250251,-510.18312938,0.00051376,60]
[321453954,1712200250261,-604.22994504,0.0005138,60]
[321453955,1712200250271,-157.64312318,0.00051392,60]
[321453956,1712200250280,-211.99904312,0.00051413,60]
[321453957,1712200250290,-155.35899174,0.00051419,60]
[321453958,1712200250300,-151.0,0.00051425,120]
[321453959,1712200250310,-238.86502259,0.00051439,60]
[321453960,1712200250319,-197.97595336,0.0005145,60]
[321453961,1712200250329,-176.34670904,0.00051455,60]
[321453962,1712200250339,-292.23916669,0.00051461,60]
[321453963,1712200250348,-1100.0,0.00051468,90]
[321453964,1712200250358,-1300.0,0.00051468,90]
[321453965,1712200250367,-500.0,0.00051468,90]
[321453966,1712200250377,-388.42808272,0.00051484,60]
[321453967,1712200250386,-510.18312938,0.00051486,60]
[321453968,1712200250396,-166.66666667,0.00051489,60]
[321453969,1712200250490,-153.89032083,0.00051489,60]
[321453970,1712200250499,-157.040411,0.00051494,111]
[321453971,1712200250509,-153.89032083,0.00051503,60]
[321453972,1712200250518,-1051.69367994,0.00051507,120]
[321453973,1712200250528,-604.22994504,0.00051507,60]
[321453974,1712200250537,-154.78369153,0.00051522,60]
[321453975,1712200250546,-604.22994504,0.00051532,60]
[321453976,1712200250559,-238.86502259,0.00051535,60]
[321453977,1712200250568,-152.0,0.00051546,14]
[321453978,1712200250577,-155.35899174,0.00051554,60]
[321453979,1712200250587,-292.23916669,0.00051564,60]
[321453980,1712200250595,-176.34670904,0.00051585,60]
[321453981,1712200250605,-150.0,0.000516,10]
[321453982,1712200250614,-151.29625457,0.00051609,60]
[321453983,1712200250623,-197.97595336,0.00051624,60]
[321453984,1712200250633,-388.42808272,0.00051633,60]
[321453985,1712200250642,-151.29625457,0.00051648,60]
[321453986,1712200250651,-157.64312318,0.00051663,60]
[321453987,1712200250660,-7075.75,0.000517,7]
[321453988,1712200250669,-7075.75,0.000517,7]
[321453989,1712200250679,-7075.75,0.000517,7]
[321453990,1712200250688,-7075.75,0.000517,7]
[321453991,1712200250697,-7075.75,0.000517,7]
[321453992,1712200250707,-7075.75,0.000517,7]
[321453993,1712200250716,-7075.75,0.000517,7]
[321453994,1712200250726,-7075.75,0.000517,7]
[321453995,1712200250736,-7075.75,0.000517,7]
[321453996,1712200250746,-7075.75,0.000517,7]
[321453997,1712200250755,-7075.75,0.000517,7]
[321453998,1712200250765,-7075.75,0.000517,7]
[321453999,1712200250775,-7075.75,0.000517,7]
[321454000,1712200250785,-7075.75,0.000517,7]
[321454001,1712200250795,-7075.75,0.000517,7]
[321454002,1712200250810,-7075.75,0.000517,7]
[321454003,1712200250820,-7075.75,0.000517,7]
[321454004,1712200250829,-7075.75,0.000517,7]
[321454005,1712200250840,-7075.75,0.000517,7]
[321454006,1712200250852,-7075.75,0.000517,7]
[321454007,1712200250862,-1051.69367994,0.00051726,120]
[321454008,1712200250873,-998.45,0.00051726,120]
[321454009,1712200250883,-153.79214001,0.00051752,60]
[321454010,1712200250892,-154.06850799,0.00051779,60]
[321454011,1712200250903,-2129.0,0.0005178,72]
[321454012,1712200250913,-292.23916669,0.00051793,60]
[321454013,1712200250922,-157.040411,0.00051794,112]
[321454014,1712200250932,-1155.79,0.000518,7]
[321454015,1712200250942,-3000.0,0.000518,2]
[321454016,1712200250952,-153.43627195,0.00051807,60]
[321454017,1712200250962,-197.97595336,0.00051815,60]
[321454018,1712200250972,-153.89032083,0.00051833,60]
[321454019,1712200250981,-292.23916669,0.0005186,60]
[321454020,1712200250991,-160.20412195,0.00051879,60]
[321454021,1712200251000,-197.97595336,0.00051891,60]
[321454022,1712200251011,-388.42808272,0.00051898,60]
[321454023,1712200251021,-2934.49815749,0.000519,20]
[321454024,1712200251030,-2933.13106914,0.00051901,20]
[321454025,1712200251040,-2566.1827597,0.00051902,20]
[321454026,1712200251052,-2889.46791039,0.00051902,20]
[321454027,1712200251063,-2607.2996582,0.00051904,20]
[321454028,1712200251073,-2867.31189277,0.00051905,20]
[321454029,1712200251084,-2994.68471334,0.00051905,20]
[321454030,1712200251093,-2827.94972263,0.00051906,20]
[321454031,1712200251103,-157.64312318,0.00051906,60]
[321454032,1712200251113,-2826.52072671,0.00051907,20]
[321454033,1712200251122,-2994.91914203,0.00051907,20]